Cogmind - Beta 10.2 --- EXPLORER MODE // 2021.06.24 @ 10:45:53 // Winter2019/RPGLIKE Player: H_ Result: Self-destructed Performance ------------- Evolutions (2) 1000 Regions Visited (7) 1400 Robots Destroyed (97) 485 Value Destroyed (3126) 3126 Prototype IDs (48) 960 Alien Tech Used (0) 0 Bonus (650) 650 TOTAL SCORE: 7621 Bonus ------- High Alert Combat Kills 287 Follower Combat Kills 112 Entered Garrisons 200 Aligned with FarCom 300 Friendly Fire -249 Cogmind --------- Core Integrity 600/600 Matter 276/300 Energy 140/140 System Corruption 0% Temperature Cool (0) Movement Flying (30) Location -8/Materials Parts ------- > --- POWER (1) -------- Light Deuterium Engine > --- PROPULSION (3) --- Flight Unit Improved VTOL Module Improved VTOL Module > --- UTILITY (6) ------ Structural Scanner Advanced Terrain Scanner Targeting Computer Targeting Computer Maneuvering Thrusters System Shield > --- WEAPON (5) ------- AWS/Thermal Enhanced Autogun Enhanced Autogun Enhanced Autogun > --- INVENTORY (6) ---- Chronowheel Improved Grenade Launcher Field Lobotomy Kit Axe Peak State ------------ > --- POWER ------------ Light Deuterium Engine > --- PROPULSION ------- Flight Unit Improved VTOL Module Improved VTOL Module > --- UTILITY ---------- Structural Scanner Advanced Terrain Scanner Targeting Computer Targeting Computer Maneuvering Thrusters System Shield > --- WEAPON ----------- AWS/Thermal Enhanced Autogun Enhanced Autogun Enhanced Autogun > --- INVENTORY -------- Chronowheel Improved Grenade Launcher Field Lobotomy Kit Axe [Rating: 54] Favorites ----------- Power Light Deuterium Engine Engine Light Deuterium Engine Power Core Light Nuclear Core Propulsion Improved Hover Unit Treads Light Treads Hover Unit Improved Hover Unit Flight Unit Improved VTOL Module Utility Targeting Computer Device Improved Terrain Scanner Processor Targeting Computer Hackware System Shield Weapon Enhanced Autogun Energy Gun AWS/Thermal Ballistic Gun Enhanced Autogun Launcher Mini Grenade Launcher Slashing Weapon Axe Build | -11 -10 -10 -10 -9 -8 -8 -8 ------- Run | Scr Mat Min Exi Min Mat Gar Mat Slots Evolved 11 | 5 . . 2 . 3 1 . Power . | . . . . . . . . Propulsion 2 | 1 . . . . 1 . . Utility 5 | 3 . . . . 2 . . Weapon 4 | 1 . . 2 . . 1 . Parts Attached 43 | 7 11 3 1 . 14 7 . Power 4 | 1 1 1 . . 1 . . Engine 2 | 1 . . . . 1 . . Core 2 | . 1 1 . . . . . Reactor . | . . . . . . . . Propulsion 9 | 2 4 . . . 3 . . Treads 2 | 2 . . . . . . . Leg . | . . . . . . . . Wheel . | . . . . . . . . Hover 2 | . 2 . . . . . . Flight 5 | . 2 . . . 3 . . Utility 8 | 2 2 . . . 4 . . Device 4 | 1 . . . . 3 . . Storage . | . . . . . . . . Processor 3 | 1 2 . . . . . . Hackware 1 | . . . . . 1 . . Protection . | . . . . . . . . Artifact . | . . . . . . . . Weapon 22 | 2 4 2 1 . 6 7 . Energy Gun 1 | . . . 1 . . . . Energy Cannon . | . . . . . . . . Ballistic Gun 14 | 2 2 1 . . 5 4 . Ballistic Cannon . | . . . . . . . . Launcher 3 | . 2 1 . . . . . Special Weapon . | . . . . . . . . Impact Weapon . | . . . . . . . . Slashing Weapon 4 | . . . . . 1 3 . Piercing Weapon . | . . . . . . . . Special Melee Weapon . | . . . . . . . . Unidentified Prototypes 2 | . . . . . 2 . . Parts Lost . | . . . . . . . . Power . | . . . . . . . . Propulsion . | . . . . . . . . Utility . | . . . . . . . . Weapon . | . . . . . . . . Highest Loss Streak . | . . . . . . . . Average Slot Usage (%) 92 | . 90 100 97 90 87 92 93 Engine 3 | . 3 . . . 5 6 6 Core 4 | . 7 11 10 9 1 . . Hover 9 | . 15 22 20 18 4 . . Flight 9 | . 1 . . . 12 20 20 Device 15 | . 11 11 10 9 20 20 20 Processor 22 | . 28 33 31 27 17 13 13 Hackware 2 | . . . . . 3 6 6 Energy Gun 4 | . . . 2 9 7 6 6 Ballistic Gun 18 | . 21 21 20 18 14 18 20 Naked Turns . | . . . . . . . . Heaviest Build 25 | 8 10 10 18 18 22 25 25 Greatest Support 50 | 50 26 26 26 26 26 26 26 Greatest Overweight (x) . | . . . . . . . . Average Overweight (x) . | . . . . . . . . Largest Inventory Capacity 6 | 3 3 3 4 4 5 6 6 Average Capacity 4 | 2 3 3 3 4 4 5 6 Most Carried 5 | 2 3 3 4 4 5 5 4 Average Carried 3 | . 1 2 2 4 3 4 4 Final Capacity 6 | 3 3 3 4 4 5 6 6 Final Carried 5 | 1 2 2 4 4 5 4 4 Class Distribution -------------------- 63% | Hacker-Scout 34% | Hacker-Mutant Dominant Class ---------------- Hacker-Mutant | -10/Materials Hacker-Mutant | -10/Mines Hacker-Mutant | -10/Exiles Hacker-Scout | -9/Mines Hacker-Scout | -8/Materials Hacker-Scout | -8/Garrison Hacker-Scout | -8/Materials Resources | -11 -10 -10 -10 -9 -8 -8 -8 ----------- Run | Scr Mat Min Exi Min Mat Gar Mat Matter Collected 1736 | 360 310 204 . 112 401 328 21 Remotely . | . . . . . . . . Salvage Created 3160 | 180 373 533 . 349 1168 480 77 Parts 217 | 16 30 21 . 15 69 50 16 Haulers Intercepted 4 | . 2 . . . 2 . . Recyclers Shooed 6 | . . 2 . 1 3 . . Parts Field Recycled . | . . . . . . . . Retrieved Matter . | . . . . . . . . Parts Self-Destructed . | . . . . . . . . Prevented . | . . . . . . . . Kills | -11 -10 -10 -10 -9 -8 -8 -8 ------- Run | Scr Mat Min Exi Min Mat Gar Mat Combat Hostiles Destroyed 71 | . 7 6 . 10 24 20 4 Guns 67 | . 5 4 . 10 24 20 4 AOE 4 | . 2 2 . . . . . Classes Destroyed 11 | 2 5 . . 1 2 1 . Worker 6 | . 1 4 . 1 . . . Tunneler 6 | 5 . . . 1 . . . Hauler 4 | . 2 . . . 2 . . Recycler 8 | 1 . 3 . 1 3 . . Watcher 8 | . 2 . . . 3 . 3 Swarmer 24 | . 4 2 . 3 4 9 2 Grunt 23 | . 3 4 . . 12 4 . Brawler 3 | . . . . . 2 . 1 Sentry 13 | . . . . . 6 6 1 Hunter 1 | . . . . . . 1 . Assembled 7 | . . . . 7 . . . Thug 1 | . . . . 1 . . . Best Kill Streak 11 | 5 4 9 . 6 9 11 7 Combat Bots Only 11 | . 3 2 . 6 7 11 3 Max Kills in Single Turn 2 | 1 2 2 . 2 2 2 2 Gunslinging 1 | . . . . . 1 1 1 Exploded 2 | . 2 1 . . . . . Melee . | . . . . . . . . Uniques/NPCs Destroyed . | . . . . . . . . Combat | -11 -10 -10 -10 -9 -8 -8 -8 -------- Run | Scr Mat Min Exi Min Mat Gar Mat Damage Taken 537 | . 133 52 . 54 192 100 6 Core 418 | . 107 39 . 43 147 78 4 Absorbed by Shields . | . . . . . . . . Redirected to Core 353 | . 71 39 . 30 138 71 4 Core Remaining (%) 100 | 100 . . . 100 . . . Volleys Fired 169 | 15 30 27 . 17 45 30 5 Largest 3 | 2 2 2 . 2 2 3 3 Hottest 75 | 40 40 40 . 40 50 75 75 Shots Fired 447 | 30 55 51 . 50 139 101 21 Gun 439 | 30 50 48 . 50 139 101 21 Cannon . | . . . . . . . . Launcher 8 | . 5 3 . . . . . Special . | . . . . . . . . Kinetic 345 | 30 50 48 . 34 90 78 15 Thermal 94 | . . . . 16 49 23 6 Explosive 8 | . 5 3 . . . . . Electromagnetic . | . . . . . . . . Robot Hit Streak 53 | 14 17 32 . 32 43 43 53 Robot Miss Streak 2 | 1 2 1 . 1 2 1 1 Penetration Max . | . . . . . . . . Secondary Targets 5 | . . . . 1 1 2 1 Max Gunslinging Chain 1 | . . . . 1 1 1 1 Autonomous 94 | . . . . 16 49 23 6 Shots Hit Robots 364 | 26 42 42 . 46 129 59 20 Core Hits 151 | 7 17 19 . 22 49 28 9 Critical Hits 3 | 1 1 . . . 1 . . Critical Kills 3 | 1 1 . . . 1 . . Critical Parts Destroyed . | . . . . . . . . Melee Attacks 9 | . . . . . 1 8 . Impact . | . . . . . . . . Slashing 9 | . . . . . 1 8 . Piercing . | . . . . . . . . Sneak Attacks . | . . . . . . . . Combat Hostiles . | . . . . . . . . Follow-up Attacks . | . . . . . . . . Damage Inflicted 7168 | 315 809 695 . 859 2875 1216 399 Guns 6702 | 315 514 524 . 859 2875 1216 399 Cannons . | . . . . . . . . Explosions 466 | . 295 171 . . . . . Melee . | . . . . . . . . Ramming . | . . . . . . . . Kinetic 3951 | 315 514 524 . 432 1441 505 220 Thermal 2751 | . . . . 427 1434 711 179 Explosive 466 | . 295 171 . . . . . Electromagnetic . | . . . . . . . . Impact . | . . . . . . . . Slashing . | . . . . . . . . Piercing . | . . . . . . . . Highest Corruption . | . . . . . . . . Average Corruption . | . . . . . . . . Corruption Purged . | . . . . . . . . Overload Shots . | . . . . . . . . Overflow Damage 1 | . 1 . . . . . . Projectiles . | . . . . . . . . Explosions 1 | . 1 . . . . . . Melee . | . . . . . . . . Knockbacks . | . . . . . . . . Impact . | . . . . . . . . Kinetic . | . . . . . . . . Secondary . | . . . . . . . . Self-Inflicted Damage . | . . . . . . . . Shots . | . . . . . . . . Rammed . | . . . . . . . . Targets Rammed . | . . . . . . . . Kicked . | . . . . . . . . Crushed . | . . . . . . . . Highest Temperature 12 | . 4 . . . 5 12 . Average Temperature 4 | . 4 . . . 3 6 . Received Heat Transfer 291 | . 75 45 . . 126 45 . Siege Activations . | . . . . . . . . Robots Corrupted . | . . . . . . . . Combat Hostiles . | . . . . . . . . Parts Fried . | . . . . . . . . Impact Corruptions . | . . . . . . . . Robots Melted . | . . . . . . . . Combat Hostiles . | . . . . . . . . Parts Melted 4 | . . . . . 3 1 . Heat Transferred 3330 | . . . . 555 1702 851 222 Parts Sabotaged . | . . . . . . . . Parts Stolen . | . . . . . . . . Parts Stripped . | . . . . . . . . Power Chain Reactions . | . . . . . . . . Missiles Intercepted . | . . . . . . . . Alert | -11 -10 -10 -10 -9 -8 -8 -8 ------- Run | Scr Mat Min Exi Min Mat Gar Mat Peak Influence 1231 | 30 359 225 . 85 721 1231 470 Initial 440 | . 14 17 . . . 167 440 Average 416 | 12 168 136 . 29 266 1034 209 Maximum Alert Level 4 | . 1 1 . . 3 4 2 Low Security (%) 44 | 100 54 76 . 100 30 3 70 Level 1 23 | . 45 23 . . 50 3 8 Level 2 4 | . . . . . 13 1 21 Level 3 8 | . . . . . 4 23 . Level 4 19 | . . . . . . 67 . Level 5 . | . . . . . . . . High Security . | . . . . . . . . Max Security . | . . . . . . . . Squads Dispatched 11 | . 2 . . . 6 . 3 Investigation 6 | . 2 . . . 4 . . Extermination . | . . . . . . . . Reinforcement 4 | . . . . . 1 . 3 Assault . | . . . . . . . . Garrison 1 | . . . . . 1 . . Intercept . | . . . . . . . . Construction Impeded 1 | . . . . . 1 . . Haulers Reinforced . | . . . . . . . . Stealth | -11 -10 -10 -10 -9 -8 -8 -8 --------- Run | Scr Mat Min Exi Min Mat Gar Mat Distress Signals 4 | . 1 . . . 2 . 1 Communications Jammed . | . . . . . . . . Distress Signals . | . . . . . . . . Times Spotted 82 | . 12 6 . 10 28 20 6 Peak Tracking Total 7 | . 4 2 . 6 6 7 3 Tactical Retreats 1 | . 1 . . . . . . Traps | -11 -10 -10 -10 -9 -8 -8 -8 ------- Run | Scr Mat Min Exi Min Mat Gar Mat Traps Triggered 3 | . . . . . . 3 . Indirectly . | . . . . . . . . Trap Hack Attempts . | . . . . . . . . Triggered . | . . . . . . . . Disarmed 6 | . 6 . . . . . . Reprogrammed . | . . . . . . . . Reused . | . . . . . . . . Traps Extracted . | . . . . . . . . Installed . | . . . . . . . . Triggered . | . . . . . . . . Machines | -11 -10 -10 -10 -9 -8 -8 -8 ---------- Run | Scr Mat Min Exi Min Mat Gar Mat Machines Disabled 6 | . . 1 . . . 4 1 Max in Single Turn 1 | . . 1 . . . 1 1 Garrison Relay 4 | . . . . . . 4 . Machines Sabotaged . | . . . . . . . . Garrisons Compromised . | . . . . . . . . Overloaded Fab Kills . | . . . . . . . . Fab Network Shutdowns . | . . . . . . . . Hacking | -11 -10 -10 -10 -9 -8 -8 -8 --------- Run | Scr Mat Min Exi Min Mat Gar Mat Machines Accessed 31 | . 10 1 2 . 16 . 2 Terminals 21 | . 8 1 . . 10 . 2 Fabricators . | . . . . . . . . Repair Stations 1 | . . . . . 1 . . Recycling Units 4 | . 2 . . . 2 . . Scanalyzers 2 | . . . . . 2 . . Garrison Access 1 | . . . . . 1 . . Total Hacks 192 | . 37 2 5 . 130 . 18 Successful 160 | . 30 2 5 . 109 . 14 Failed 32 | . 7 . . . 21 . 4 Catastrophic . | . . . . . . . . Database Lockouts . | . . . . . . . . Manual 156 | . 26 1 1 . 110 . 18 Terminals 155 | . 33 2 . . 102 . 18 Fabricators . | . . . . . . . . Repair Stations 1 | . . . . . 1 . . Recycling Units 15 | . 4 . . . 11 . . Scanalyzers 8 | . . . . . 8 . . Garrison Access 8 | . . . . . 8 . . Terminal Hacks 87 | . 18 1 5 . 55 . 8 Record 5 | . . . 4 . 1 . . Part Schematic 14 | . . . . . 11 . 3 Robot Analysis 24 | . 11 . . . 12 . 1 Prototype ID Bank 18 | . . . . . 18 . . Branch Access Points 2 | . 1 . . . 1 . . Machine Index 2 | . . . . . 1 . 1 Terminal Index 2 | . 1 . . . 1 . . Recycling Unit Index 2 | . 1 . . . 1 . . Garrison Index 1 | . . . . . 1 . . Unreport Threat 7 | . . . . . 4 . 3 Locate Traps 3 | . 2 . . . 1 . . Disarm Traps 1 | . 1 . . . . . . Registered Components 1 | . . . . . 1 . . Registered Prototypes 1 | . . . . . 1 . . Zone Layout 3 | . 1 1 . . 1 . . EX-Prototype ID Bank 1 | . . . 1 . . . . Fabricator Hacks . | . . . . . . . . Repair Station Hacks . | . . . . . . . . Recycling Unit Hacks 7 | . 2 . . . 5 . . Process 1 | . . . . . 1 . . Report Inventory 3 | . 2 . . . 1 . . Retrieve Matter 1 | . . . . . 1 . . Retrieve Components 2 | . . . . . 2 . . Scanalyzer 6 | . . . . . 6 . . Insert Component 3 | . . . . . 3 . . Analyze 3 | . . . . . 3 . . Garrison Access Hacks 1 | . . . . . 1 . . Unlock Access 1 | . . . . . 1 . . Unauthorized Hacks 59 | . 10 1 . . 42 . 6 Terminals 43 | . 8 1 . . 28 . 6 Track 15 | . 3 1 . . 9 . 2 Assimilate 4 | . . . . . 4 . . Botnet 16 | . 5 . . . 9 . 2 Disrupt 6 | . . . . . 5 . 1 Operators 2 | . . . . . 1 . 1 Fabricators . | . . . . . . . . Repair Stations 1 | . . . . . 1 . . Mechanics 1 | . . . . . 1 . . Recycling Units 6 | . 2 . . . 4 . . Monitor 1 | . . . . . 1 . . Recyclers 1 | . . . . . 1 . . Tunnel 4 | . 2 . . . 2 . . Scanalyzers 2 | . . . . . 2 . . Extract 2 | . . . . . 2 . . Garrison Access 7 | . . . . . 7 . . Broadcast 1 | . . . . . 1 . . Restock 1 | . . . . . 1 . . Reprogram 4 | . . . . . 4 . . Watchers 1 | . . . . . 1 . . Data Cores Recovered . | . . . . . . . . Used . | . . . . . . . . Hacking Detections 25 | . 10 1 . . 13 . 1 Full Trace Events . | . . . . . . . . Feedback Events . | . . . . . . . . Feedback Blocked . | . . . . . . . . Robot Schematics Acquired . | . . . . . . . . Robots Built . | . . . . . . . . Matter . | . . . . . . . . Time . | . . . . . . . . Total Robot Build Rating . | . . . . . . . . Part Schematics Acquired 23 | . . . . . 20 . 3 Parts Built . | . . . . . . . . Matter . | . . . . . . . . Time . | . . . . . . . . Total Part Build Rating . | . . . . . . . . Parts Repaired . | . . . . . . . . Time . | . . . . . . . . Parts Recycled . | . . . . . . . . Recycled Matter 285 | . . . . . 285 . . Retrieved Matter 404 | . . . . . 404 . . Retrieved Components 17 | . . . . . 17 . . Parts Scanalyzed 3 | . . . . . 3 . . Part Schematics Acquired 3 | . . . . . 3 . . Parts Damaged . | . . . . . . . . Bothacking | -11 -10 -10 -10 -9 -8 -8 -8 ------------ Run | Scr Mat Min Exi Min Mat Gar Mat Used RIF Installer . | . . . . . . . . Robots Hacked . | . . . . . . . . Non-combat . | . . . . . . . . Combat . | . . . . . . . . Robot Hacks Applied . | . . . . . . . . Relay Couplers Released 7 | . . . . . . 7 . Machine Destruction 7 | . . . . . . 7 . Robots Rewired . | . . . . . . . . Allies Hacked . | . . . . . . . . Hacks Repelled . | . . . . . . . . Allies | -11 -10 -10 -10 -9 -8 -8 -8 -------- Run | Scr Mat Min Exi Min Mat Gar Mat Total Allies 10 | . . . . . 10 . . Largest Group 9 | . . . . . 9 9 2 Highest-Rated Group 145 | . . . . . 145 145 32 Highest-Rated Ally 23 | . . . . . 23 23 23 Total Orders . | . . . . . . . . Ally Attacks 33 | . . . . . 9 24 . Total Damage 373 | . . . . . 146 227 . Kills 4 | . . . . . . 4 . Allies Corrupted . | . . . . . . . . Allies Melted . | . . . . . . . . Intel | -11 -10 -10 -10 -9 -8 -8 -8 ------- Run | Scr Mat Min Exi Min Mat Gar Mat Robot Analysis Total 24 | . 11 . . . 12 . 1 Derelict Logs Recovered . | . . . . . . . . Drone Launches . | . . . . . . . . Drone Recoveries . | . . . . . . . . Exploration | -11 -10 -10 -10 -9 -8 -8 -8 ------------- Run | Scr Mat Min Exi Min Mat Gar Mat Turns Passed 3427 | 98 494 457 202 419 761 936 60 Spaces Moved 4725 | 53 722 657 355 629 1385 773 151 Core 180 | 42 138 . . . . . . Treads 11 | 11 . . . . . . . Legs . | . . . . . . . . Wheels . | . . . . . . . . Hover 2421 | . 493 657 355 629 287 . . Flight 2113 | . 91 . . . 1098 773 151 Fastest Speed 30 | 50 37 56 56 56 30 30 30 Average Speed 44 | 72 52 56 56 56 36 30 30 Slowest Speed 160 | 160 60 56 56 56 56 30 30 Overloaded Moves . | . . . . . . . . Propulsion Burnouts . | . . . . . . . . Robots Hopped 8 | . . . . . 7 . 1 Cave-ins Triggered . | . . . . . . . . Exploration Rate (%) 70 | 4 88 100 85 99 77 91 17 Regions Visited 7 Branch Regions 3 Pre-discovered Areas 5 | . 2 . 1 . 2 . . Known Exits Taken 6 | 1 1 1 1 1 1 . . Unknown Exits Taken . | . . . . . . . . Scrap Searched 3 | . . . . 3 . . . Spaces Dug 1 | . . . . . 1 . . Terrain Destroyed 58 | . 42 11 . 1 4 . . Melee 1 | . . . . . 1 . . Projectile 4 | . . . . 1 3 . . AOE 53 | . 42 11 . . . . . Terrain Rammed . | . . . . . . . . Walls Destroyed . | . . . . . . . . Machines Disabled . | . . . . . . . . Actions | -11 -10 -10 -10 -9 -8 -8 -8 --------- Run | Scr Mat Min Exi Min Mat Gar Mat Total 5729 | 80 778 693 357 661 1575 1426 159 Wait 678 | . 8 . . 11 108 549 2 Move 4703 | 52 721 656 354 628 1371 772 149 Hop 8 | . . . . . 7 . 1 Pick Up 13 | 4 2 . 2 . 5 . . Fast Attach 19 | 4 6 . 1 . 8 . . Attach 7 | 3 1 . . . 2 1 . Detach 1 | . . . . . 1 . . Swap 17 | . 4 3 . . 4 6 . Drop 17 | 2 3 1 . . 11 . . Fire 169 | 15 30 27 . 17 45 30 5 Melee 9 | . . . . . 1 8 . Ram . | . . . . . . . . Kick . | . . . . . . . . Crush . | . . . . . . . . Escape Stasis 54 | . . . . . . 54 . Rewire . | . . . . . . . . Trap . | . . . . . . . . Miscellaneous 34 | . 3 6 . 5 12 6 2 Route ------- -11/Scrapyard -10/Materials (discovered 5 exits: *Mat x3 / *Min x2) -10/Mines (discovered 3 exits: *Mat x2 / *Exi) -10/Exiles -9/Mines (discovered 2 exits: *Mat x2) -8/Materials (discovered 2 exits: *Fac / Gar) -8/Garrison (discovered 3 exits: *Mat x3) -8/Materials (discovered 1 exit: Fac) History --------- Turn | Location | Event 4 | -11/Scrapyard | Identified exit to Materials 4 | -11/Scrapyard | Discovered exit to Materials (range 16) 6 | -11/Scrapyard | Upgraded with Propulsion slot (x1) 6 | -11/Scrapyard | Upgraded with Utility slot (x3) 6 | -11/Scrapyard | Upgraded with Weapon slot (x1) 99 | -11/Scrapyard | Entered Materials 116 | -10/Materials | Identified exit to Mines 116 | -10/Materials | Discovered exit to Mines (range 14) 123 | -10/Materials | Identified exit to Materials 123 | -10/Materials | Discovered exit to Materials (range 15) 204 | -10/Materials | Discovered exit to Mines (range 16) 308 | -10/Materials | Discovered exit to Materials (range 10) 310 | -10/Materials | Build established: Hacker-Mutant 534 | -10/Materials | Discovered exit to Materials (range 16) 593 | -10/Materials | Entered Mines 595 | -10/Mines | Reached level 2 682 | -10/Mines | Discovered exit to Materials (range 14) 695 | -10/Mines | Discovered exit to Materials (range 14) 715 | -10/Mines | Joined a pair of Derelicts in attacking an 0b10 outpost 811 | -10/Mines | Identified exit to Exiles 811 | -10/Mines | Discovered exit to Exiles (range 11) 819 | -10/Mines | Deemed a non-threat by the Exiles lab entrance 1024 | -10/Mines | YI-UF0 nonchalantly dropped a Grenade Launcher on the ground 1050 | -10/Mines | Entered Exiles 1064 | -10/Exiles | Met 8R-AWN 1073 | -10/Exiles | Met EX-HEX 1095 | -10/Exiles | Met EX-DEC 1106 | -10/Exiles | Visited The Gauntlet 1158 | -10/Exiles | Learned location of Zion (-6) 1168 | -10/Exiles | Met EX-BIN 1176 | -10/Exiles | Reached level 3 1176 | -10/Exiles | Aligned with FarCom system 1177 | -10/Exiles | Given EX-Vault access code 1189 | -10/Exiles | Opened EX-Vault 1194 | -10/Exiles | Found Chronowheel 1195 | -10/Exiles | Upgraded with Weapon slot (x2) 1195 | -10/Exiles | Found AWS/Thermal 1199 | -10/Exiles | Found Field Lobotomy Kit 1211 | -10/Exiles | Warned to stay clear of 0b10 Research branches 1248 | -10/Exiles | Identified exit to Mines 1248 | -10/Exiles | Discovered exit to Mines (range 10) 1252 | -10/Exiles | Stole three prototypes: AWS/Thermal, Chronowheel, Field Lobotomy Kit 1252 | -10/Exiles | Entered Mines 1266 | -9/Mines | Assembled infested the area 1276 | -9/Mines | Met a Derelict bent on vengeance 1353 | -9/Mines | Identified exit to Materials 1353 | -9/Mines | Discovered exit to Materials (range 14) 1539 | -9/Mines | Build established: Hacker-Scout 1559 | -9/Mines | Discovered exit to Materials (range 9) 1671 | -9/Mines | Entered Materials 1673 | -8/Materials | Reached level 4 1673 | -8/Materials | Reached level 5 1673 | -8/Materials | Reached level 6 1674 | -8/Materials | Upgraded with Propulsion slot (x1) 1674 | -8/Materials | Upgraded with Utility slot (x2) 1831 | -8/Materials | Reached level 7 2017 | -8/Materials | Identified exit to Factory 2017 | -8/Materials | Discovered exit to Factory (range 16) 2087 | -8/Materials | Reached level 8 2241 | -8/Materials | Reached level 9 2352 | -8/Materials | Destroyed 7 combat bots 2392 | -8/Materials | Garrison activated, responded to threat 2393 | -8/Materials | Reached level 10 2401 | -8/Materials | Identified exit to Garrison 2432 | -8/Materials | Entered Garrison 2432 | -8/Garrison | Accompanied by 9 allies 2461 | -8/Garrison | Triggered checkpoint 2467 | -8/Garrison | Garrison Relay disabled 2487 | -8/Garrison | Reached level 11 2490 | -8/Garrison | Upgraded with Weapon slot (x1) 2514 | -8/Garrison | Triggered checkpoint 2520 | -8/Garrison | Triggered checkpoint 2539 | -8/Garrison | Destroyed 11 combat bots 2563 | -8/Garrison | Identified exit to Materials 2563 | -8/Garrison | Discovered exit to Materials (range 9) 2600 | -8/Garrison | Triggered checkpoint 2604 | -8/Garrison | Garrison Relay disabled 2604 | -8/Garrison | Reached level 12 2651 | -8/Garrison | Discovered exit to Materials (range 18) 2654 | -8/Garrison | Triggered checkpoint 2659 | -8/Garrison | Garrison Relay disabled 2727 | -8/Garrison | Discovered exit to Materials (range 9) 2736 | -8/Garrison | Triggered checkpoint 2740 | -8/Garrison | Garrison Relay disabled 3368 | -8/Garrison | Entered Materials 3368 | -8/Materials | Accompanied by 2 allies 3405 | -8/Materials | Discovered exit to Factory (range 15) 3428 | -8/Materials | Self-destructed Last Messages --------------- 03401_ O-16 Technician locks terminal. 03404_ W-25 Informer destroyed. 03404_ ALERT: Hostiles spotted, dispatching reinforcements to Terminal M007. 03405_ EXIT=FOUND: FACTORY 03409_ K-01 Serf collects debris. 03412_ Acquired 3 matter. 03413_ K-01 Serf collects debris. 03414_ O-16 Technician: "IFF HANDSHAKE FAILED. SECURING TERMINAL." 03415_ Destroyed Lgt. Ion Engine. 03420_ ALERT: Hostiles spotted, dispatching reinforcements to Terminal M003. 03420_ T-07 Excavator is excavating. 03421_ K-01 Serf collects debris. 03423_ B-36 Bruiser destroyed. 03424_ Administrator 3a reports 0b10 security level has risen to 1. 03424_ T-07 Excavator is excavating. 03425_ Administrator 3a reveals location of hidden door. 03425_ Used Protomatter to restore core integrity (+4) 03426_ Used Protomatter to restore part integrity (+2) Map ----- +----------------------------------------------------+ | #?##?##### """ ## """"" #?? | | ########## """ ## """"" %#?? | | # k# """ ## #?? | | # T """ # ###########?? | | # """ # ## [ ?####? | | # ! """ # """ ##?? ?#?#?# | | # + """ #? ? ##??#? | | # = """ # """ ## ?k ?? ? ? | | # """ # ##??##+##?? ? | | # """ # # # +? ??# | | # # !!! #??? # #??? ? | | ########## !! # ??k +? # | | #?#?#?#### !! #???o# # ?"?? | | ###??##### # T?# # Y??? | | #?#?##??## = # ? # #??" ? | | #?##??#??# """% #? # +? ??? | | ########?# = T" ####?# ##???? | | #?#?# [%""" ###### ##?##? | | a #####! = #?#### | | o Y ! ! #????# | | #+############## t #???#? | | T?#?#?###?#?# #??### | | ###?#?##############o #???## | | "" #####???????? ? ?# ###??? | | """ ##?#?#?##????? k #o #??#?? | | """ ##?#####???#? ?"? ?#@*###??? | | ###? ?? ?? ????"? += t #??# | | ######?#? ? ?##? ??" # ###??? | | ?##??#???? ????### g [# #??#?? | | ???#?##?#? ? ???#?#+###?# #?##?? | | ?#??#??#?? ? ??###? ? ?# #???#? | | ##???#?#?? ??????# ???? # #?#??? | | #?#?#?#??????#+##??"?? ?# #?#??? | | ?#?#???#??#? ??? ???"?? # #????? | | ???????#?###?????#?"?" ?####????? | | ? ???? ? ? Y ??????? #??#????? | | #??#?????????? ??# "?? ?????????? | | ?#?????#??##?? ?#???????#????#?? | | #????#???#???#???? ""? ????????? | | ???????????????#?? ??? ?????????? | | ?????????????????#????? ?#?#?#??? | | ????????????????????????#?#?#???? | | ????????????????????#???????????? | | | | | | | | | | | | | | | +----------------------------------------------------+ Best States ------------- Heat Dissipation 55 Energy Generation 29 Energy Capacity 160 Matter Stores 300 Matter Capacity 300 Sight Range 20 Terrain Scan Range 20 Terrain Scan Density 210 Resistance: KI 35 Resistance: TH 35 Resistance: EX 35 Resistance: EM 35 Resistance: I 35 Resistance: S 35 Resistance: P 35 Evasion (%) 70 Targeting Accuracy 15 Recoil Reduction 2 Offensive Hacking 30 Defensive Hacking 25 Item Schematics ----------------- Enh. Autogun | -8/Materials | Scanalyzed System Shield | -8/Materials | Hacked Hacking Suite | -8/Materials | Hacked Cld. Ion Engine | -8/Materials | Hacked Adv. Terrain Scanner | -8/Materials | Hacked Lgt. Armor Plating | -8/Materials | Hacked Lgt. Assault Rifle | -8/Materials | Hacked Lgt. Cannon | -8/Materials | Hacked Lgt. Deuterium Engine | -8/Materials | Hacked Lgt. EM Pulse Cannon | -8/Materials | Hacked Lgt. Treads | -8/Materials | Hacked Lgt. Nuclear Core | -8/Materials | Hacked Axe | -8/Materials | Scanalyzed Imp. Grenade Launcher | -8/Materials | Scanalyzed Imp. EM Shotgun | -8/Materials | Extracted Imp. Signal Interpreter | -8/Materials | Extracted Plasma Cutter | -8/Materials | Extracted Airjet | -8/Materials | Extracted Weapon Shielding | -8/Materials | Extracted Actuator Array | -8/Materials | Extracted Adv. Sensor Array | -8/Materials | Hacked Lrn. Sensor Array | -8/Materials | Hacked Lrn. Terrain Scanner | -8/Materials | Hacked Robot Schematics ------------------ None Fabricated ------------ Nothing Alien Tech Used ----------------- None Achievements -------------- None Challenges ------------ None RPGLIKE | -11 -10 -10 -10 -9 -8 -8 -8 --------- Run | Scr Mat Min Exi Min Mat Gar Mat Levels Raised 11 | . . 1 1 . 7 2 . XP Earned 23547 | 6000 1405 1250 350 1101 9661 3366 414 XP Spent 22490 | 6000 . . 2900 90 8900 4600 . Upgrades 38 | 13 . . 3 1 16 5 . Propulsion Slot 2 | 1 . . . . 1 . . Utility Slot 5 | 3 . . . . 2 . . Weapon Slot 4 | 1 . . 2 . . 1 . Heat Dissipation 5 | 1 . . . . 4 . . Energy Generation 3 | 1 . . . . 2 . . Mass Support 2 | 2 . . . . . . . Inventory Capacity 6 | 3 . . 1 . 1 1 . Sight Range 4 | . . . . . 4 . . Terrain Scan Density 2 | 1 . . . 1 . . . Hack Attack % 2 | . . . . . 1 1 . Hack Defense % 3 | . . . . . 1 2 . Protomatter Created 1112 | . 16 . . 54 564 361 117 Integrity Restored 546 | . 46 127 . 73 194 100 6 Core 418 | . 37 95 . 57 147 78 4 Parts 128 | . 9 32 . 16 47 22 2 Protomatter Decayed 904 | . . 14 . 28 439 423 . Game ------ Seed ParticleTeslaApparatus Manual? 0 Play Time 01:10:13 Cumulative 195.5 hours Start 2021.06.19 @ 13:42:42 End 2021.06.24 @ 10:45:53 Sessions 3 Manual Loads 0 Difficulty Explorer Special Mode Winter2019/RPGLIKE Game No. 39 Rogue 12 Adventurer 0 Explorer 27 Win Type - Total 4 Types 2/0/2/0/0/0/0/0/0 Lore% 75 Gallery% 83 Achievement% 70 Wizard Run 0 Options --------- ASCII 0 Keyboard 0 Movement Mouse Keybinds 0 Fullscreen 2 Font 24/Proggy Map View 76x50 Tactical HUD 1 Map Filters NONE Filters NONE Steam 1 RUN: dcd63861-0597-416e-8787-13eecc0f0824